Workbook

Sheet INÍCIO
B1: ACERCA DESTE MODELO
B2: Utilize esta ferramenta de orçamentação de sites para monitorizar o investimento inicial e os respetivos benefícios e custos.
B3: Introduza os detalhes nas tabelas para calcular automaticamente os totais e as métricas de avaliação.
B4: Nota:
B5: Estão disponíveis instruções adicionais na coluna A de cada folha de cálculo da FERRAMENTA DE ORÇAMENTO. Este texto foi intencionalmente oculto. Para remover o texto, selecione a coluna A e, em seguida, selecione ELIMINAR. Para mostrar o texto, selecione a coluna A e, em seguida, mude a cor do tipo de letra.
B6: Para saber mais sobre as tabelas na folha de cálculo, prima Shift+F10 numa tabela, selecione a opção Tabela e, em seguida, selecione Texto Alternativo.

Sheet FERRAMENTA DE ORÇAMENTO
B2: Quadrex Hardware
B3: FERRAMENTA DE ORÇAMENTAÇÃO DE SITES
B4: 2022-12-01
B6: Dados da empresa | C6: Taxa
B7: Taxa de retorno necessária | C7: 10%
B8: Taxa de imposto | C8: 30%
B10: Investimento inicial no site | C10: Ano
A11: s | B11: Hardware (por exemplo, servidores) | C11: 25,000.00 €
B12: Software (por exemplo, software de catálogo de comércio eletrónico) | C12: 15,000.00 €
B13: Desenvolvimento (por exemplo, design do site por terceiros e programação) | C13: 150,000.00 €
B14: Investimentos iniciais totais | C14: =SUBTOTAL(109,InvestimentoInicial[Ano]) -> 190,000.00 €
B16: Benefícios do site | C16: Ano 1 | D16: Ano 2 | E16: Ano 3
B17: Vendas diretas | C17: 15,000.00 € | D17: 50,000.00 € | E17: 75,000.00 €
B18: Vendas incrementais resultantes da eficácia do vendedor/promoções | C18: 25,000.00 € | D18: 25,000.00 € | E18: 25,000.00 €
B19: Vendas incrementais resultantes do aumento da participação de parceiros | C19: 25,000.00 € | D19: 25,000.00 € | E19: 25,000.00 €
B20: Custos de viagem reduzidos | C20: 25,000.00 € | D20: 25,000.00 € | E20: 25,000.00 €
B21: Custos de apoio o cliente reduzidos | C21: 50,000.00 € | D21: 50,000.00 € | E21: 50,000.00 €
B22: Benefícios totais | C22: =SUBTOTAL(109,Benefícios[Ano 1]) -> 140,000.00 € | D22: =SUBTOTAL(109,Benefícios[Ano 2]) -> 175,000.00 € | E22: =SUBTOTAL(109,Benefícios[Ano 3]) -> 200,000.00 €
B24: Custos (excluindo os Investimentos iniciais de capital) | C24: ANO 1 | D24: ANO 2 | E24: ANO 3
B25: Custos das vendas | C25: 7,500.00 € | D25: 25,000.00 € | E25: 37,500.00 €
B26: Manutenção | C26: 15,000.00 € | D26: 15,000.00 € | E26: 15,000.00 €
B27: Gestão de Projetos, suporte ao cliente | C27: 35,000.00 € | D27: 35,000.00 € | E27: 35,000.00 €
B28: Publicidade online, registo nos motores de busca | C28: 10,000.00 € | D28: 10,000.00 € | E28: 10,000.00 €
B29: Depreciação dos gastos de capital (é utilizado um período de 3 anos nos cálculos) | C29: =InvestimentoInicial[[#Totals],[Ano]]/3 -> 63,333.33 € | D29: =InvestimentoInicial[[#Totals],[Ano]]/3 -> 63,333.33 € | E29: =InvestimentoInicial[[#Totals],[Ano]]/3 -> 63,333.33 €
B30: Custos totais | C30: =SUBTOTAL(109,Custos[ANO 1]) -> 130,833.33 € | D30: =SUBTOTAL(109,Custos[ANO 2]) -> 148,333.33 € | E30: =SUBTOTAL(109,Custos[ANO 3]) -> 160,833.33 €
B32: Totais | D32: Ano 1 | E32: Ano 2 | F32: Ano 3
B33: Benefícios líquidos (custos) | D33: =Benefícios[[#Totals],[Ano 1]]-Custos[[#Totals],[ANO 1]] -> 9,166.67 € | E33: =Benefícios[[#Totals],[Ano 2]]-Custos[[#Totals],[ANO 2]] -> 26,666.67 € | F33: =Benefícios[[#Totals],[Ano 3]]-Custos[[#Totals],[ANO 3]] -> 39,166.67 €
B34: Imposto | D34: =D33*ValorDoImposto -> 2,750.00 € | E34: =E33*ValorDoImposto -> 8,000.00 € | F34: =F33*ValorDoImposto -> 11,750.00 €
B35: Valor após o imposto | D35: =D33-D34 -> 6,416.67 € | E35: =E33-E34 -> 18,666.67 € | F35: =F33-F34 -> 27,416.67 €
B36: Retorno de depreciação | D36: =C29 -> 63,333.33 € | E36: =D29 -> 63,333.33 € | F36: =E29 -> 63,333.33 €
B37: Fluxo de caixa | C37: =-InvestimentoInicial[[#Totals],[Ano]] -> -190,000.00 € | D37: =D35+D36 -> 69,750.00 € | E37: 82,000.00 € | F37: 90,750.00 €
B38: Fluxo de caixa acumulado | C38: =C37 -> -190,000.00 € | D38: =C38+D37 -> -120,250.00 € | E38: =D38+E37 -> -38,250.00 € | F38: =E38+F37 -> 52,500.00 €
B40: Métricas de avaliação | C40: Valores
B41: Valor atual líquido (VAL) | C41: =C37+(NPV(TaxaDeRetorno,D37:F37)) -> 9,359.50 €
B42: Taxa interna de retorno (TIR) | C42: =IRR(C37:F37) -> 12.66%
B43: Período de recuperação do investimento (em anos) | C43: =IF(F38<=0,"Excede 3 anos",IF(E38<=0,(F37-F38)/F37+2,IF(D38<=0,(E37-E38)/E37+1,IF(C38<=0,(D37-D38)/D37,"ND")))) -> 2.42
